[Event "Centenario Panaderia Pulido 2023"]
[Site "San Mateo Gran Canaria"]
[Date "2023.12.04"]
[Round "1.1"]
[White "Basualdo De Ornelas, Jorge"]
[Black "Korneev, Oleg"]
[Result "0-1"]
[ECO "B43"]
[WhiteElo "1624"]
[BlackElo "2470"]
[Annotator "RC"]
[PlyCount "114"]
[EventDate "2023.12.04"]
[EventType "swiss"]
[EventCountry "ESP"]
[SourceTitle "playchess.com"]
[Source "ChessBase"]
[SourceQuality "1"]
[TimeControl "5400+30"]

1. e4 {[%emt 0:00:01]} c5 {[%emt 0:00:05]} 2. Nf3 {[%emt 0:00:04]} e6 {[%emt 0:00:05]} 3. d4 {[%emt 0:00:15]} cxd4 {[%emt 0:00:05]} 4. Nxd4 {[%emt 0:00:05]} a6 {[%emt 0:00:05]} 5. Nc3 {[%emt 0:00:27]} Qc7 {[%emt 0:00:07]} 6. g3 {[%emt 0:00:34]} Bb4 {[%emt 0:00:18]} 7. Bd2 {[%emt 0:01:06]} Nc6 {[%emt 0:00:20]} 8. Nxc6 {[%emt 0:00:08]} dxc6 {[%emt 0:00:26]} 9. Bg2 {[%emt 0:01:00]} e5 {[%emt 0:03:04]} 10. O-O {[%emt 0:00:19]} Be7 {[%emt 0:00:04]} 11. a4 {[%emt 0:01:35]} a5 {[%emt 0:01:12]} 12. Nb1 {[%emt 1:30:56]} Nf6 {[%emt 0:00:08]} 13. Na3 {[%emt 0:00:00]} O-O {[%emt 0:02:37]} 14. h3 {[%emt 0:00:00]} b6 {[%emt 0:11:46]} 15. c4 {[%emt 0:00:00]} Rd8 {[%emt 0:02:11]} 16. Qe2 {[%emt 0:00:00]} Nd7 {[%emt 0:00:15]} 17. Be3 {[%emt 0:00:00]} Nc5 {[%emt 0:04:26]} 18. Bxc5 {[%emt 0:00:00]} Bxc5 {[%emt 0:00:46]} 19. Nc2 {[%emt 0:00:00]} Be6 {[%emt 0:00:07]} 20. Rad1 {[%emt 0:00:00]} Rd6 {[%emt 0:03:49]} 21. Rxd6 {[%emt 0:00:00]} Qxd6 {[%emt 0:00:05]} 22. Rd1 {[%emt 0:00:00]} Bxc4 {[%emt 0:00:46]} 23. Rxd6 {[%emt 0:00:00]} Bxe2 {[%emt 0:00:03]} 24. Rd7 {[%emt 0:00:00]} Bc4 {[%emt 0:01:31]} 25. Bf1 {[%emt 0:00:00]} Bb3 {[%emt 0:12:39]} 26. Ne3 {[%emt 0:00:00]} Bxe3 {[%emt 0:01:59]} 27. fxe3 {[%emt 0:00:00]} Bxa4 {[%emt 0:04:48]} 28. Bc4 {[%emt 0:00:00]} Rf8 {[%emt 0:00:05]} 29. Kf2 {[%emt 0:00:00]} Bc2 {[%emt 0:09:34]} 30. Kf3 {[%emt 0:00:00]} b5 {[%emt 0:00:05]} 31. Ba2 {[%emt 0:00:00]} g6 {[%emt 0:06:46]} 32. Rd2 {[%emt 0:00:00]} Ba4 {[%emt 0:00:02]} 33. b3 {[%emt 0:00:00]} Bxb3 {[%emt 0:00:02]} 34. Bxb3 {[%emt 0:00:00]} a4 {[%emt 0:00:02]} 35. Bd1 {[%emt 0:00:00]} Ra8 {[%emt 0:00:15]} 36. g4 {[%emt 0:00:00]} Kf8 {[%emt 0:15:00]} 37. Ke2 {[%emt 0:00:25]} Ke7 {[%emt 0:01:00]} 38. g5 {[%emt 0:06:51]} h6 {[%emt 0:02:58]} 39. gxh6 {[%emt 0:00:36]} Rh8 {[%emt 0:00:05]} 40. Kd3 {[%emt 0:01:04]} Rxh6 {[%emt 0:00:31]} 41. Bg4 {[%emt 0:01:16]} Kd6 {[%emt 0:03:04]} 42. Kc3+ {[%emt 0:02:08]} Kc5 {[%emt 0:00:07]} 43. Kb2 {[%emt 0:02:33]} g5 {[%emt 0:03:53]} 44. Rd7 {[%emt 0:00:32]} Rf6 {[%emt 0:04:20]} 45. Bf5 {[%emt 0:00:09]} Kb4 {[%emt 0:00:28]} 46. Rd3 {[%emt 0:00:52]} c5 {[%emt 0:01:37]} 47. Ka2 {[%emt 0:00:32]} Rb6 {[%emt 0:00:46]} 48. Rd7 {[%emt 0:00:30]} Kc3 {[%emt 0:00:42]} 49. Rd1 {[%emt 0:00:29]} Kc2 {[%emt 0:00:50]} 50. Rg1 {[%emt 0:00:27]} b4 {[%emt 0:00:05]} 51. Rg2+ {[%emt 0:01:06]} Kc3 {[%emt 0:00:03]} 52. Bd7 {[%emt 0:00:00]} b3+ {[%emt 0:00:09]} 53. Kb1 {[%emt 0:00:22]} a3 {[%emt 0:00:41]} 54. Rg1 {[%emt 0:00:28]} a2+ {[%emt 0:00:22]} 55. Ka1 {[%emt 0:00:05]} b2+ {[%emt 0:00:10]} 56. Kxa2 {[%emt 0:00:04]} Ra6+ {[%emt 0:00:01]} 57. Kb1 {[%emt 0:00:46]} Ra1# {[%emt 0:00:02]} 0-1

[Event "Centenario Panaderia Pulido 2023"]
[Site "San Mateo Gran Canaria"]
[Date "2023.12.04"]
[Round "1.2"]
[White "Kurajica, Bojan"]
[Black "Julien Casteleiro, Ariel"]
[Result "1-0"]
[ECO "E09"]
[WhiteElo "2446"]
[BlackElo "1609"]
[Annotator "RC"]
[PlyCount "53"]
[EventDate "2023.12.04"]
[EventType "swiss"]
[EventCountry "ESP"]
[SourceTitle "playchess.com"]
[Source "ChessBase"]
[SourceQuality "1"]
[TimeControl "5400+30"]

1. d4 {[%emt 0:00:03]} d5 {[%emt 0:00:09]} 2. c4 {[%emt 0:00:05]} c6 {[%emt 0:00:07]} 3. Qc2 {[%emt 0:00:10]} Nf6 {[%emt 0:00:16]} 4. Nf3 {[%emt 0:00:06]} e6 {[%emt 0:01:10]} 5. g3 {[%emt 0:00:19]} Be7 {[%emt 0:00:06]} 6. Bg2 {[%emt 0:00:06]} Nbd7 {[%emt 0:00:49]} 7. O-O {[%emt 0:01:20]} O-O {[%emt 0:00:25]} 8. Nbd2 {[%emt 0:00:09]} a6 {[%emt 0:02:03]} 9. e4 {[%emt 0:01:12]} dxe4 {[%emt 0:03:20]} 10. Nxe4 {[%emt 0:00:09]} Nxe4 {[%emt 0:00:12]} 11. Qxe4 {[%emt 0:00:05]} Nf6 {[%emt 0:00:14]} 12. Qe2 {[%emt 0:01:46]} Re8 {[%emt 0:00:51]} 13. Rd1 {[%emt 0:01:47]} Qa5 {[%emt 0:01:03]} 14. Bd2 {[%emt 0:05:13]} Qb6 {[%emt 0:02:56]} 15. b4 {[%emt 0:01:12]} Bf8 {[%emt 0:01:18]} 16. Rab1 {[%emt 0:02:27]} Qa7 {[%emt 0:00:56]} 17. Bg5 {[%emt 0:04:56]} Be7 {[%emt 0:01:07]} 18. Ne5 {[%emt 0:02:44]} Nd7 {[%emt 0:05:36]} 19. Bxe7 {[%emt 0:00:30]} Rxe7 {[%emt 0:00:16]} 20. Bxc6 {[%emt 0:00:19]} Nxe5 {[%emt 0:03:35]} 21. dxe5 {[%emt 0:00:09]} Qb6 {[%emt 0:04:00]} 22. Ba4 {[%emt 0:01:05]} Qc7 {[%emt 0:03:55]} 23. Qd3 {[%emt 0:01:28]} g6 {[%emt 0:01:38]} 24. Qd8+ {[%emt 0:07:45]} Kg7 {[%emt 0:00:21]} 25. c5 {[%emt 0:02:35]} b5 {[%emt 0:06:43]} 26. cxb6 {[%emt 0:00:09]} Qb7 {[%emt 0:04:07]} 27. Rbc1 {[%emt 1:06:11]} 1-0

[Event "Centenario Panaderia Pulido 2023"]
[Site "San Mateo Gran Canaria"]
[Date "2023.12.04"]
[Round "1.3"]
[White "Rivero Pena, Himar"]
[Black "Strikovic, Aleksa"]
[Result "0-1"]
[ECO "B28"]
[WhiteElo "1594"]
[BlackElo "2455"]
[Annotator "RC"]
[PlyCount "74"]
[EventDate "2023.12.04"]
[EventType "swiss"]
[EventCountry "ESP"]
[SourceTitle "playchess.com"]
[Source "ChessBase"]
[SourceQuality "1"]
[TimeControl "5400+30"]

1. e4 {[%emt 0:00:19]} c5 {[%emt 0:00:06]} 2. Nf3 {[%emt 0:00:31]} a6 {[%emt 0:00:07]} 3. d4 {[%emt 0:00:17]} cxd4 {[%emt 0:00:06]} 4. Nxd4 {[%emt 0:00:03]} Nf6 {[%emt 0:00:07]} 5. Bd3 {[%emt 0:01:43]} e5 {[%emt 0:01:09]} 6. Nb3 {[%emt 0:00:46]} d5 {[%emt 0:02:47]} 7. exd5 {[%emt 0:07:06]} Nxd5 {[%emt 0:07:28]} 8. O-O {[%emt 0:04:45]} Nc6 {[%emt 0:02:50]} 9. c4 {[%emt 0:02:25]} Ndb4 {[%emt 0:12:06]} 10. Be4 {[%emt 0:20:19]} Be6 {[%emt 0:04:08]} 11. Bxc6+ {[%emt 0:14:36]} Nxc6 {[%emt 0:02:11]} 12. Qe2 {[%emt 0:00:39]} Qh4 {[%emt 1:03:25]} 13. f4 {[%emt 0:43:31]} Bd6 {[%emt 0:00:30]} 14. g3 {[%emt 0:00:30]} Qg4 {[%emt 0:00:00]} 15. Qxg4 {[%emt 0:00:00]} Bxg4 {[%emt 0:00:00]} 16. Nc3 {[%emt 0:00:00]} O-O-O {[%emt 0:00:00]} 17. Be3 {[%emt 0:00:00]} f6 {[%emt 0:00:00]} 18. Nd5 {[%emt 0:00:00]} Kb8 {[%emt 0:00:00]} 19. Rac1 {[%emt 0:00:00]} Rhe8 {[%emt 0:00:00]} 20. Bb6 {[%emt 0:00:00]} Rc8 {[%emt 0:00:00]} 21. c5 {[%emt 0:00:00]} Bf8 {[%emt 0:00:00]} 22. Rfe1 {[%emt 0:00:00]} Bf3 {[%emt 0:00:00]} 23. Ne3 {[%emt 0:00:00]} exf4 {[%emt 0:00:00]} 24. Nf5 {[%emt 0:00:00]} Ne5 {[%emt 0:00:00]} 25. Nd6 {[%emt 0:01:57]} Bxd6 {[%emt 0:00:00]} 26. cxd6 {[%emt 0:00:05]} Rxc1 {[%emt 0:00:00]} 27. Rxc1 {[%emt 0:00:05]} fxg3 {[%emt 0:00:00]} 28. hxg3 {[%emt 0:00:40]} Bc6 {[%emt 0:00:00]} 29. Nc5 {[%emt 0:00:46]} Kc8 {[%emt 0:00:00]} 30. Rd1 {[%emt 0:00:52]} h5 {[%emt 0:00:00]} 31. b3 {[%emt 0:01:46]} h4 {[%emt 0:00:00]} 32. gxh4 {[%emt 0:00:37]} Rh8 {[%emt 0:00:00]} 33. Ne6 {[%emt 0:01:59]} Rxh4 {[%emt 0:00:00]} 34. Kf2 {[%emt 0:00:05]} g5 {[%emt 0:00:00]} 35. Bc7 {[%emt 0:00:44]} Rh3 {[%emt 0:00:00]} 36. Rf1 {[%emt 0:00:52]} Ng4+ {[%emt 0:00:00]} 37. Ke1 {[%emt 0:00:31]} Re3+ {[%emt 0:00:00]} 0-1

[Event "Centenario Panaderia Pulido 2023"]
[Site "San Mateo Gran Canaria"]
[Date "2023.12.04"]
[Round "1.4"]
[White "Larino Nieto, David"]
[Black "Fernandez Fernandez, Carlos II"]
[Result "1-0"]
[ECO "A11"]
[WhiteElo "2366"]
[BlackElo "1584"]
[Annotator "RC"]
[PlyCount "63"]
[EventDate "2023.12.04"]
[EventType "swiss"]
[EventCountry "ESP"]
[SourceTitle "playchess.com"]
[Source "ChessBase"]
[SourceQuality "1"]
[TimeControl "5400+30"]

1. Nf3 {[%emt 0:00:19]} d5 {[%emt 0:00:30]} 2. b3 {[%emt 0:00:02]} Nf6 {[%emt 0:00:52]} 3. Bb2 {[%emt 0:00:02]} g6 {[%emt 0:01:10]} 4. c4 {[%emt 0:00:10]} Bg7 {[%emt 0:01:14]} 5. cxd5 {[%emt 0:00:06]} O-O {[%emt 0:01:07]} 6. g3 {[%emt 0:00:38]} Nxd5 {[%emt 0:02:31]} 7. Bxg7 {[%emt 0:10:20]} Kxg7 {[%emt 0:00:03]} 8. Bg2 {[%emt 0:00:32]} c6 {[%emt 0:00:33]} 9. O-O {[%emt 0:05:59]} Nd7 {[%emt 0:00:39]} 10. e4 {[%emt 0:00:35]} N5f6 {[%emt 0:02:51]} 11. Qc2 {[%emt 0:00:02]} e5 {[%emt 0:04:03]} 12. d4 {[%emt 0:00:29]} Re8 {[%emt 0:02:54]} 13. dxe5 {[%emt 0:00:28]} Nxe5 {[%emt 0:01:12]} 14. Nxe5 {[%emt 0:00:02]} Rxe5 {[%emt 0:00:21]} 15. Rd1 {[%emt 0:00:05]} Qb6 {[%emt 0:01:22]} 16. Qb2 {[%emt 0:01:28]} Qc5 {[%emt 0:08:22]} 17. Nc3 {[%emt 0:00:58]} Bg4 {[%emt 0:02:31]} 18. Rd2 {[%emt 0:00:37]} Rae8 {[%emt 0:02:08]} 19. Rc1 {[%emt 0:01:06]} Qb6 {[%emt 0:02:44]} 20. h3 {[%emt 0:00:18]} Bd7 {[%emt 0:13:02]} 21. Rxd7 {[%emt 0:01:18]} Nxd7 {[%emt 0:04:05]} 22. Na4 {[%emt 0:00:02]} Qb4 {[%emt 0:01:16]} 23. a3 {[%emt 0:01:39]} Qe7 {[%emt 0:01:11]} 24. f4 {[%emt 0:00:10]} b5 {[%emt 0:00:25]} 25. Nc3 {[%emt 0:00:11]} Qc5+ {[%emt 0:02:55]} 26. Kh2 {[%emt 0:00:22]} Qe3 {[%emt 0:00:47]} 27. Nd1 {[%emt 0:00:21]} Qe1 {[%emt 0:01:38]} 28. Nf2 {[%emt 0:00:21]} Qe3 {[%emt 0:02:39]} 29. Rxc6 {[%emt 0:00:33]} Kg8 {[%emt 0:01:06]} 30. Ng4 {[%emt 0:00:11]} Qd3 {[%emt 0:02:07]} 31. fxe5 {[%emt 0:00:22]} h5 {[%emt 0:00:26]} 32. Rd6 {[%emt 0:00:12]} 1-0

[Event "Centenario Panaderia Pulido 2023"]
[Site "San Mateo Gran Canaria"]
[Date "2023.12.04"]
[Round "1.5"]
[White "Mukhi Talreja, Ishita Tina"]
[Black "Yao, Stefano"]
[Result "0-1"]
[ECO "A20"]
[WhiteElo "1575"]
[BlackElo "2288"]
[Annotator "RC"]
[PlyCount "86"]
[EventDate "2023.12.04"]
[EventType "swiss"]
[EventCountry "ESP"]
[SourceTitle "playchess.com"]
[Source "ChessBase"]
[SourceQuality "1"]
[TimeControl "5400+30"]

1. c4 {[%emt 0:00:06]} e5 {[%emt 0:00:46]} 2. g3 {[%emt 0:00:14]} Nf6 {[%emt 0:00:39]} 3. Bg2 {[%emt 0:00:22]} c6 {[%emt 0:01:04]} 4. d4 {[%emt 0:00:18]} exd4 {[%emt 0:01:09]} 5. Qxd4 {[%emt 0:00:45]} Na6 {[%emt 0:02:49]} 6. a3 {[%emt 0:06:06]} Be7 {[%emt 0:03:10]} 7. Nf3 {[%emt 0:03:56]} Nc5 {[%emt 0:04:17]} 8. Qd1 {[%emt 0:02:10]} a5 {[%emt 0:04:33]} 9. O-O {[%emt 0:04:24]} a4 {[%emt 0:01:27]} 10. Nd4 {[%emt 0:09:27]} O-O {[%emt 0:01:38]} 11. Nf5 {[%emt 0:03:38]} Nb3 {[%emt 0:04:14]} 12. Ra2 {[%emt 0:10:45]} Bc5 {[%emt 0:03:35]} 13. Be3 {[%emt 0:06:44]} d5 {[%emt 0:02:37]} 14. Bxc5 {[%emt 0:03:05]} Nxc5 {[%emt 0:00:05]} 15. Ne3 {[%emt 0:05:16]} dxc4 {[%emt 0:05:33]} 16. Nc3 {[%emt 0:05:02]} Be6 {[%emt 0:00:56]} 17. Ra1 {[%emt 0:01:23]} Qc7 {[%emt 0:02:51]} 18. Qc2 {[%emt 0:04:42]} b5 {[%emt 0:01:00]} 19. Rad1 {[%emt 0:02:50]} Rad8 {[%emt 0:00:24]} 20. Rxd8 {[%emt 0:02:49]} Rxd8 {[%emt 0:00:56]} 21. Rd1 {[%emt 0:00:32]} Rd7 {[%emt 0:03:14]} 22. Rxd7 {[%emt 0:02:35]} Qxd7 {[%emt 0:00:09]} 23. Na2 {[%emt 0:05:04]} Nb3 {[%emt 0:02:59]} 24. Nc1 {[%emt 0:03:15]} Nd4 {[%emt 0:06:13]} 25. Qc3 {[%emt 0:02:24]} h5 {[%emt 0:03:15]} 26. Nf1 {[%emt 0:03:45]} c5 {[%emt 0:05:58]} 27. Qa5 {[%emt 0:03:45]} Bg4 {[%emt 0:04:56]} 28. Qa8+ {[%emt 0:03:29]} Kh7 {[%emt 0:00:25]} 29. e3 {[%emt 0:01:14]} Nc2 {[%emt 0:12:09]} 30. Be4+ {[%emt 0:04:42]} Nxe4 {[%emt 0:00:46]} 31. Qxe4+ {[%emt 0:00:03]} Bf5 {[%emt 0:00:08]} 32. Qf3 {[%emt 0:00:31]} g6 {[%emt 0:03:44]} 33. Na2 {[%emt 0:01:01]} Bg4 {[%emt 0:00:53]} 34. Qf6 {[%emt 0:00:28]} Kg8 {[%emt 0:03:48]} 35. Nc3 {[%emt 0:00:29]} Ne1 {[%emt 0:01:37]} 36. h4 {[%emt 0:00:37]} Bf3 {[%emt 0:01:36]} 37. Nh2 {[%emt 0:00:26]} Qh3 {[%emt 0:00:42]} 38. Qxf3 {[%emt 0:00:34]} Nxf3+ {[%emt 0:00:06]} 39. Nxf3 {[%emt 0:00:05]} Qd7 {[%emt 0:00:19]} 40. Ne4 {[%emt 0:00:37]} Kg7 {[%emt 0:00:33]} 41. Kg2 {[%emt 0:00:45]} Qc6 {[%emt 0:00:26]} 42. Ned2 {[%emt 0:00:33]} Qf6 {[%emt 0:00:16]} 43. Ne4 {[%emt 0:00:21]} Qxb2 {[%emt 0:00:06]} 0-1

[Event "Centenario Panaderia Pulido 2023"]
[Site "San Mateo Gran Canaria"]
[Date "2023.12.04"]
[Round "1.7"]
[White "Quevedo Olivares, Carlos Tomas"]
[Black "Calzetta Ruiz, Monica"]
[Result "0-1"]
[ECO "C58"]
[WhiteElo "1555"]
[BlackElo "2239"]
[Annotator "RC"]
[PlyCount "44"]
[EventDate "2023.12.04"]
[EventType "swiss"]
[EventCountry "ESP"]
[SourceTitle "playchess.com"]
[Source "ChessBase"]
[SourceQuality "1"]
[TimeControl "5400+30"]

1. e4 {[%emt 0:00:04]} e5 {[%emt 0:00:05]} 2. Nf3 {[%emt 0:00:06]} Nc6 {[%emt 0:00:05]} 3. Bc4 {[%emt 0:00:06]} Nf6 {[%emt 0:00:15]} 4. Ng5 {[%emt 0:00:06]} d5 {[%emt 0:00:08]} 5. exd5 {[%emt 0:00:09]} Na5 {[%emt 0:00:06]} 6. Bb5+ {[%emt 0:00:12]} c6 {[%emt 0:00:06]} 7. dxc6 {[%emt 0:00:09]} bxc6 {[%emt 0:00:08]} 8. Qf3 {[%emt 0:00:17]} cxb5 {[%emt 0:00:49]} 9. Qxa8 {[%emt 0:00:18]} Qc7 {[%emt 0:00:06]} 10. Nc3 {[%emt 0:19:34]} Nc6 {[%emt 0:00:55]} 11. Nxb5 {[%emt 0:00:30]} Qd7 {[%emt 0:00:06]} 12. d4 {[%emt 0:00:25]} Bb4+ {[%emt 0:24:04]} 13. c3 {[%emt 0:02:03]} O-O {[%emt 0:00:13]} 14. Nxa7 {[%emt 0:00:06]} Bb7 {[%emt 0:13:21]} 15. Qxf8+ {[%emt 0:00:41]} Bxf8 {[%emt 0:00:09]} 16. Nxc6 {[%emt 0:00:56]} Qxc6 {[%emt 0:00:16]} 17. d5 {[%emt 0:15:41]} Qxd5 {[%emt 0:02:01]} 18. Nf3 {[%emt 0:03:22]} Ba6 {[%emt 0:07:46]} 19. b3 {[%emt 0:06:51]} Qd3 {[%emt 0:00:16]} 20. c4 {[%emt 0:01:43]} Qc3+ {[%emt 0:00:21]} 21. Nd2 {[%emt 0:00:09]} Qxa1 {[%emt 0:00:26]} 22. O-O {[%emt 0:00:47]} Qxa2 {[%emt 0:00:08]} 0-1

[Event "Centenario Panaderia Pulido 2023"]
[Site "San Mateo Gran Canaria"]
[Date "2023.12.04"]
[Round "1.8"]
[White "Oudeh Mishmesh, Omar"]
[Black "Oudeh Mishmesh, Lara"]
[Result "1-0"]
[ECO "D02"]
[WhiteElo "2247"]
[BlackElo "1503"]
[Annotator "ChessBase"]
[PlyCount "34"]
[EventDate "2023.12.04"]
[EventType "swiss"]
[EventCountry "ESP"]
[SourceTitle "playchess.com"]
[Source "ChessBase"]
[SourceQuality "1"]
[TimeControl "5400+30"]

1. d4 {[%emt 0:00:05]} Nf6 {[%emt 0:00:20]} 2. Nf3 {[%emt 0:00:24]} d5 {[%emt 0:00:14]} 3. Bf4 {[%emt 0:00:21]} Bf5 {[%emt 0:01:22]} 4. e3 {[%emt 0:00:47]} c6 {[%emt 0:00:14]} 5. Bd3 {[%emt 0:01:58]} Bxd3 {[%emt 0:00:26]} 6. Qxd3 {[%emt 0:00:42]} g6 {[%emt 0:00:30]} 7. Nbd2 {[%emt 0:01:33]} Bg7 {[%emt 0:00:28]} 8. h4 {[%emt 0:01:24]} O-O {[%emt 0:00:15]} 9. h5 {[%emt 0:02:24]} Nbd7 {[%emt 0:00:20]} 10. hxg6 {[%emt 0:01:10]} fxg6 {[%emt 0:01:15]} 11. Ng5 {[%emt 0:00:27]} Qb6 {[%emt 0:00:43]} 12. Ne6 {[%emt 0:04:19]} Rf7 {[%emt 0:00:20]} 13. Bh6 {[%emt 0:01:23]} Ne8 {[%emt 0:01:56]} 14. Bxg7 {[%emt 0:00:19]} Nxg7 {[%emt 0:00:07]} 15. Ng5 {[%emt 0:00:24]} Ne6 {[%emt 0:01:07]} 16. Nxf7 {[%emt 0:00:24]} Kxf7 {[%emt 0:00:05]} 17. Rxh7+ {[%emt 0:00:11]} Kg8 {[%emt 0:00:13]} 1-0

[Event "Centenario Panaderia Pulido 2023"]
[Site "San Mateo Gran Canaria"]
[Date "2023.12.04"]
[Round "1.9"]
[White "Vargas Tinoco, Martin Alonso"]
[Black "Estremera Panos, Sergio"]
[Result "0-1"]
[ECO "A45"]
[WhiteElo "1535"]
[BlackElo "2232"]
[Annotator "RC"]
[PlyCount "78"]
[EventDate "2023.12.04"]
[EventType "swiss"]
[EventCountry "ESP"]
[SourceTitle "playchess.com"]
[Source "ChessBase"]
[SourceQuality "1"]
[TimeControl "5400+30"]

1. d4 {[%emt 0:00:04]} Nf6 {[%emt 0:00:28]} 2. Bf4 {[%emt 0:00:13]} g6 {[%emt 0:01:04]} 3. Nc3 {[%emt 0:00:15]} d5 {[%emt 0:01:58]} 4. Nb5 {[%emt 0:04:55]} Na6 {[%emt 0:00:23]} 5. Nf3 {[%emt 0:00:48]} Bg7 {[%emt 0:00:19]} 6. e3 {[%emt 0:00:35]} O-O {[%emt 0:02:03]} 7. Be2 {[%emt 0:01:38]} Bf5 {[%emt 0:16:03]} 8. c3 {[%emt 0:07:30]} c6 {[%emt 0:05:40]} 9. Na3 {[%emt 0:00:10]} Nc7 {[%emt 0:00:49]} 10. Qb3 {[%emt 0:04:41]} Nh5 {[%emt 0:02:25]} 11. Be5 {[%emt 0:08:53]} Bc8 {[%emt 0:17:51]} 12. O-O {[%emt 0:11:57]} Ne8 {[%emt 0:08:09]} 13. c4 {[%emt 0:06:04]} e6 {[%emt 0:00:45]} 14. cxd5 {[%emt 0:03:53]} exd5 {[%emt 0:00:10]} 15. Rac1 {[%emt 0:04:08]} f6 {[%emt 0:03:16]} 16. Bg3 {[%emt 0:00:11]} Nxg3 {[%emt 0:00:07]} 17. hxg3 {[%emt 0:00:05]} Nd6 {[%emt 0:00:12]} 18. Nb1 {[%emt 0:00:59]} Bg4 {[%emt 0:05:33]} 19. Nbd2 {[%emt 0:02:15]} Kh8 {[%emt 0:00:23]} 20. Bd3 {[%emt 0:06:03]} Re8 {[%emt 0:00:42]} 21. Rc3 {[%emt 0:06:06]} Be6 {[%emt 0:12:58]} 22. Qc2 {[%emt 0:01:16]} a5 {[%emt 0:00:22]} 23. a4 {[%emt 0:01:38]} Bf7 {[%emt 0:01:40]} 24. Rc1 {[%emt 0:06:00]} Qe7 {[%emt 0:00:26]} 25. Nb3 {[%emt 0:02:02]} Bf8 {[%emt 0:04:10]} 26. Nfd2 {[%emt 0:03:08]} Qd8 {[%emt 0:05:31]} 27. Nc5 {[%emt 0:01:03]} Kg7 {[%emt 0:02:18]} 28. Kf1 {[%emt 0:03:19]} Be7 {[%emt 0:04:05]} 29. Be2 {[%emt 0:00:23]} f5 {[%emt 0:00:40]} 30. Rb3 {[%emt 0:03:57]} Rb8 {[%emt 0:00:34]} 31. Bf3 {[%emt 0:03:31]} Bf6 {[%emt 0:00:30]} 32. Nd3 {[%emt 0:00:59]} Ne4 {[%emt 0:01:11]} 33. Nc5 {[%emt 0:01:01]} Nd6 {[%emt 0:00:27]} 34. Nd3 {[%emt 0:00:47]} Qe7 {[%emt 0:00:22]} 35. Nc5 {[%emt 0:02:38]} g5 {[%emt 0:00:52]} 36. Nd3 {[%emt 0:03:04]} Ne4 {[%emt 0:02:03]} 37. Rb6 {[%emt 0:01:56]} Nd6 {[%emt 0:00:59]} 38. Qc5 {[%emt 0:00:38]} Qd8 {[%emt 0:01:12]} 39. Qc3 {[%emt 0:00:43]} Qxb6 {[%emt 0:00:08]} 0-1

[Event "Centenario Panaderia Pulido 2023"]
[Site "San Mateo Gran Canaria"]
[Date "2023.12.04"]
[Round "1.11"]
[White "Roca Marrero, Fernando"]
[Black "Hernandez Leon, Alberto"]
[Result "0-1"]
[ECO "A45"]
[WhiteElo "1504"]
[BlackElo "2209"]
[Annotator "RC"]
[PlyCount "66"]
[EventDate "2023.12.04"]
[EventType "swiss"]
[EventCountry "ESP"]
[SourceTitle "playchess.com"]
[Source "ChessBase"]
[SourceQuality "1"]
[TimeControl "5400+30"]

1. d4 {[%emt 0:00:11]} c5 {[%emt 0:00:05]} 2. c3 {[%emt 0:05:31]} Nf6 {[%emt 0:00:14]} 3. Bf4 {[%emt 0:00:28]} Qb6 {[%emt 0:04:32]} 4. Qc2 {[%emt 0:04:57]} cxd4 {[%emt 0:01:18]} 5. cxd4 {[%emt 0:00:03]} Nc6 {[%emt 0:00:52]} 6. e3 {[%emt 0:00:56]} d5 {[%emt 0:04:37]} 7. a3 {[%emt 0:00:26]} Bf5 {[%emt 0:04:08]} 8. Qc1 {[%emt 0:06:20]} Na5 {[%emt 0:03:25]} 9. Nd2 {[%emt 0:01:02]} Rc8 {[%emt 0:01:16]} 10. Qd1 {[%emt 0:03:05]} Qxb2 {[%emt 0:02:15]} 11. Ne2 {[%emt 0:08:20]} e6 {[%emt 0:08:20]} 12. e4 {[%emt 0:08:53]} Nxe4 {[%emt 0:02:55]} 13. Nxe4 {[%emt 0:01:03]} Bxe4 {[%emt 0:01:13]} 14. Rc1 {[%emt 0:01:26]} Bc2 {[%emt 0:02:00]} 15. Qd2 {[%emt 0:06:18]} Nb3 {[%emt 0:00:46]} 16. Qe3 {[%emt 0:06:47]} Bxa3 {[%emt 0:01:14]} 17. f3 {[%emt 0:06:50]} Nxc1 {[%emt 0:01:15]} 18. Nxc1 {[%emt 0:01:54]} Qxc1+ {[%emt 0:02:38]} 19. Qxc1 {[%emt 0:00:09]} Bxc1 {[%emt 0:00:02]} 20. Bb5+ {[%emt 0:00:19]} Kd8 {[%emt 0:02:36]} 21. Bxc1 {[%emt 0:00:58]} Ba4 {[%emt 0:02:50]} 22. Bg5+ {[%emt 0:01:59]} f6 {[%emt 0:00:06]} 23. Bxa4 {[%emt 0:00:28]} fxg5 {[%emt 0:00:08]} 24. O-O {[%emt 0:00:03]} Rc4 {[%emt 0:00:44]} 25. Bb5 {[%emt 0:03:26]} Rxd4 {[%emt 0:00:11]} 26. Re1 {[%emt 0:00:09]} Ke7 {[%emt 0:00:16]} 27. Rc1 {[%emt 0:00:16]} Kd6 {[%emt 0:00:13]} 28. Kf2 {[%emt 0:00:54]} Rb4 {[%emt 0:00:38]} 29. Bf1 {[%emt 0:00:21]} g4 {[%emt 0:00:43]} 30. Rc3 {[%emt 0:00:33]} Rf8 {[%emt 0:00:33]} 31. Kg3 {[%emt 0:01:20]} gxf3 {[%emt 0:00:07]} 32. Rxf3 {[%emt 0:00:12]} Rxf3+ {[%emt 0:00:07]} 33. Kxf3 {[%emt 0:00:05]} a5 {[%emt 0:54:43]} 0-1